[Event "Titled Tuesday Blitz August 31 2021"]
[White "Chigaev, Maksim"]
[Black "Bilan, Danila"]
[WhiteFideId "4108116"]
[BlackFideId "24161918"]
[WhiteElo "2579"]
[BlackElo "2164"]
[Result "1-0"]
[Round "02"]
[TimeControl "180+1"]
[Date "2021.08.31"]
[WhiteClock "0:00:56"]
[BlackClock "0:00:18"]

1. d4 {[%clk 0:02:59]}  d5 {[%clk 0:02:58]} 2. Nc3 {[%clk 0:02:59]}  Nf6 {[%clk 0:02:56]} 3. Bf4 {[%clk 0:02:59]}  a6 {[%clk 0:02:56]} 4. e3 {[%clk 0:02:57]}  Bf5 {[%clk 0:02:53]} 5. Nf3 {[%clk 0:02:57]}  e6 {[%clk 0:02:52]} 6. Ne5 {[%clk 0:02:57]}  Nbd7 {[%clk 0:02:48]} 7. g4 {[%clk 0:02:57]}  Bg6 {[%clk 0:02:47]} 8. h4 {[%clk 0:02:56]}  h5 {[%clk 0:02:18]} 9. Nxg6 {[%clk 0:02:49]}  fxg6 {[%clk 0:02:19]} 10. g5 {[%clk 0:02:50]}  Ng8 {[%clk 0:02:13]} 11. Qd3 {[%clk 0:02:42]}  Ne7 {[%clk 0:02:09]} 12. Bh3 {[%clk 0:02:41]}  Nf5 {[%clk 0:02:06]} 13. e4 {[%clk 0:02:31]}  dxe4 {[%clk 0:01:52]} 14. Qxe4 {[%clk 0:02:32]}  Kf7 {[%clk 0:01:47]} 15. O-O-O {[%clk 0:02:07]}  Bd6 {[%clk 0:01:42]} 16. Bxd6 {[%clk 0:01:58]}  cxd6 {[%clk 0:01:41]} 17. d5 {[%clk 0:01:58]}  Qe7 {[%clk 0:01:05]} 18. Rhe1 {[%clk 0:01:43]}  e5 {[%clk 0:00:57]} 19. Bxf5 {[%clk 0:01:43]}  gxf5 {[%clk 0:00:58]} 20. Qxf5+ {[%clk 0:01:43]}  Kg8 {[%clk 0:00:58]} 21. Qe6+ {[%clk 0:01:41]}  Kf8 {[%clk 0:00:58]} 22. Ne4 {[%clk 0:01:38]}  Nc5 {[%clk 0:00:46]} 23. Nxc5 {[%clk 0:01:35]}  dxc5 {[%clk 0:00:43]} 24. Rxe5 {[%clk 0:01:34]}  Qxe6 {[%clk 0:00:42]} 25. dxe6 {[%clk 0:01:33]}  Rc8 {[%clk 0:00:38]} 26. Rd7 {[%clk 0:01:25]}  b5 {[%clk 0:00:37]} 27. Rf5+ {[%clk 0:01:23]}  Ke8 {[%clk 0:00:35]} 28. Rff7 {[%clk 0:01:18]}  g6 {[%clk 0:00:33]} 29. Rde7+ {[%clk 0:01:06]}  Kd8 {[%clk 0:00:33]} 30. Ra7 {[%clk 0:01:06]}  Ke8 {[%clk 0:00:29]} 31. Rf6 {[%clk 0:01:04]}  Rf8 {[%clk 0:00:26]} 32. f4 {[%clk 0:00:56]}  Rxf6 {[%clk 0:00:17]} 33. gxf6 {[%clk 0:00:57]}  Rc6 {[%clk 0:00:18]} 34. Ra8+ {[%clk 0:00:56]} 1-0


[Site "https://www.chess.com"]

[Event "Titled Tuesday Blitz August 31 2021"]
[White "Czopor, Maciej"]
[Black "Petriashvili, Nikoloz"]
[WhiteFideId "21805431"]
[BlackFideId "13611216"]
[WhiteElo "1999"]
[BlackElo "2430"]
[Result "0-1"]
[Round "02"]
[TimeControl "180+1"]
[Date "2021.08.31"]
[WhiteClock "0:00:02"]
[BlackClock "0:00:43"]

1. e4 {[%clk 0:03:00]}  c5 {[%clk 0:03:00]} 2. Nf3 {[%clk 0:03:00]}  Nc6 {[%clk 0:03:01]} 3. d4 {[%clk 0:03:01]}  cxd4 {[%clk 0:03:01]} 4. Nxd4 {[%clk 0:03:01]}  e5 {[%clk 0:03:01]} 5. Nb5 {[%clk 0:03:02]}  d6 {[%clk 0:03:01]} 6. N1c3 {[%clk 0:03:01]}  a6 {[%clk 0:02:59]} 7. Na3 {[%clk 0:03:01]}  b5 {[%clk 0:02:59]} 8. Nd5 {[%clk 0:03:02]}  Nf6 {[%clk 0:02:58]} 9. Bg5 {[%clk 0:03:00]}  Be7 {[%clk 0:02:58]} 10. Bxf6 {[%clk 0:02:57]}  Bxf6 {[%clk 0:02:58]} 11. c4 {[%clk 0:02:58]}  b4 {[%clk 0:02:58]} 12. Nc2 {[%clk 0:02:58]}  a5 {[%clk 0:02:59]} 13. g3 {[%clk 0:02:57]}  O-O {[%clk 0:02:58]} 14. h4 {[%clk 0:02:56]}  Be6 {[%clk 0:02:58]} 15. Bh3 {[%clk 0:02:53]}  Bxd5 {[%clk 0:02:53]} 16. Qxd5 {[%clk 0:02:52]}  Nd4 {[%clk 0:02:53]} 17. Nxd4 {[%clk 0:02:52]}  exd4 {[%clk 0:02:54]} 18. O-O {[%clk 0:02:34]}  Re8 {[%clk 0:02:54]} 19. Qf5 {[%clk 0:02:19]}  g6 {[%clk 0:02:50]} 20. Qf3 {[%clk 0:02:19]}  a4 {[%clk 0:02:45]} 21. Rfe1 {[%clk 0:02:06]}  Ra5 {[%clk 0:02:39]} 22. Bf1 {[%clk 0:02:06]}  d3 {[%clk 0:02:25]} 23. Rab1 {[%clk 0:01:53]}  a3 {[%clk 0:02:23]} 24. b3 {[%clk 0:01:45]}  d2 {[%clk 0:02:21]} 25. Re3 {[%clk 0:01:36]}  Bc3 {[%clk 0:02:12]} 26. Rd3 {[%clk 0:01:36]}  Rae5 {[%clk 0:02:10]} 27. Bg2 {[%clk 0:01:36]}  Rxe4 {[%clk 0:02:09]} 28. Qxe4 {[%clk 0:01:36]}  Rxe4 {[%clk 0:02:10]} 29. Bxe4 {[%clk 0:01:36]}  Qe7 {[%clk 0:02:10]} 30. Re3 {[%clk 0:01:27]}  Qf6 {[%clk 0:02:02]} 31. Rf1 {[%clk 0:01:10]}  Bd4 {[%clk 0:01:38]} 32. Rf3 {[%clk 0:00:57]}  Qe5 {[%clk 0:01:36]} 33. Bc2 {[%clk 0:00:56]}  f5 {[%clk 0:01:29]} 34. Kg2 {[%clk 0:00:54]}  Kg7 {[%clk 0:01:28]} 35. Rd3 {[%clk 0:00:51]}  Qe4+ {[%clk 0:01:22]} 36. Kg1 {[%clk 0:00:45]}  Qe5 {[%clk 0:01:23]} 37. Kg2 {[%clk 0:00:40]}  Bc3 {[%clk 0:01:21]} 38. Rd5 {[%clk 0:00:33]}  Qe6 {[%clk 0:01:19]} 39. Bd1 {[%clk 0:00:31]}  Qe4+ {[%clk 0:01:17]} 40. Kg1 {[%clk 0:00:26]}  Qb1 {[%clk 0:01:17]} 41. Rxd6 {[%clk 0:00:24]}  Qxa2 {[%clk 0:01:17]} 42. c5 {[%clk 0:00:24]}  Qb2 {[%clk 0:01:13]} 43. c6 {[%clk 0:00:24]}  Be5 {[%clk 0:01:08]} 44. Rd7+ {[%clk 0:00:24]}  Kh6 {[%clk 0:00:56]} 45. c7 {[%clk 0:00:22]}  Qc3 {[%clk 0:00:50]} 46. Rxd2 {[%clk 0:00:14]}  Bxc7 {[%clk 0:00:43]} 47. Rc2 {[%clk 0:00:11]}  Qe5 {[%clk 0:00:43]} 48. Ra2 {[%clk 0:00:08]}  Bb6 {[%clk 0:00:43]} 49. Kg2 {[%clk 0:00:08]}  Qd5+ {[%clk 0:00:44]} 50. Kg1 {[%clk 0:00:08]}  f4 {[%clk 0:00:43]} 51. g4 {[%clk 0:00:04]}  f3 {[%clk 0:00:43]} 52. Bxf3 {[%clk 0:00:02]}  Qxf3 {[%clk 0:00:43]} 0-1


[Site "https://www.chess.com"]

[Event "Titled Tuesday Blitz August 31 2021"]
[White "Danielian, Vardan"]
[Black "Seo, Jung Min"]
[WhiteFideId "13301594"]
[BlackFideId "1734687"]
[WhiteElo "2506"]
[BlackElo "2486"]
[Result "1/2-1/2"]
[Round "02"]
[TimeControl "180+1"]
[Date "2021.08.31"]
[WhiteClock "0:00:33"]
[BlackClock "0:01:31"]

1. d4 {[%clk 0:02:59]}  Nf6 {[%clk 0:02:59]} 2. Nf3 {[%clk 0:02:59]}  g6 {[%clk 0:02:59]} 3. g3 {[%clk 0:02:59]}  Bg7 {[%clk 0:02:59]} 4. Bg2 {[%clk 0:02:59]}  O-O {[%clk 0:02:59]} 5. O-O {[%clk 0:02:59]}  d6 {[%clk 0:02:59]} 6. c4 {[%clk 0:02:59]}  Nbd7 {[%clk 0:02:59]} 7. Nc3 {[%clk 0:02:59]}  e5 {[%clk 0:02:59]} 8. dxe5 {[%clk 0:02:59]}  dxe5 {[%clk 0:02:58]} 9. h3 {[%clk 0:02:59]}  c6 {[%clk 0:02:57]} 10. Be3 {[%clk 0:02:59]}  Qe7 {[%clk 0:02:56]} 11. Qb3 {[%clk 0:02:59]}  Rd8 {[%clk 0:02:48]} 12. Rfd1 {[%clk 0:02:58]}  Ne8 {[%clk 0:02:35]} 13. Ng5 {[%clk 0:02:10]}  Nf8 {[%clk 0:02:28]} 14. Rxd8 {[%clk 0:02:04]}  Qxd8 {[%clk 0:02:28]} 15. Rd1 {[%clk 0:02:03]}  Qe7 {[%clk 0:02:27]} 16. Nce4 {[%clk 0:01:30]}  Ne6 {[%clk 0:02:21]} 17. Nxe6 {[%clk 0:01:23]}  Bxe6 {[%clk 0:02:21]} 18. Bc5 {[%clk 0:01:22]}  Qc7 {[%clk 0:02:19]} 19. Ng5 {[%clk 0:00:57]}  Bf5 {[%clk 0:02:00]} 20. g4 {[%clk 0:00:53]}  Bd7 {[%clk 0:01:50]} 21. Qd3 {[%clk 0:00:53]}  Nf6 {[%clk 0:01:50]} 22. Be7 {[%clk 0:00:49]}  Bf5 {[%clk 0:01:37]} 23. Qd6 {[%clk 0:00:35]}  Qxd6 {[%clk 0:01:36]} 24. Bxd6 {[%clk 0:00:33]}  Bd7 {[%clk 0:01:31]} 25. Bxe5 {[%clk 0:00:33]}  Be8 {[%clk 0:01:31]} 1/2-1/2


[Site "https://www.chess.com"]

[Event "Titled Tuesday Blitz August 31 2021"]
[White "Ezat, Mohamed"]
[Black "Erdogdu, Mert"]
[WhiteFideId "10600906"]
[BlackFideId "6301495"]
[WhiteElo "2414"]
[BlackElo "2485"]
[Result "1/2-1/2"]
[Round "02"]
[TimeControl "180+1"]
[Date "2021.08.31"]
[WhiteClock "0:00:07"]
[BlackClock "0:00:07"]

1. d4 {[%clk 0:03:00]}  d5 {[%clk 0:02:59]} 2. c4 {[%clk 0:02:59]}  e6 {[%clk 0:02:59]} 3. Nc3 {[%clk 0:02:58]}  c5 {[%clk 0:03:00]} 4. cxd5 {[%clk 0:02:58]}  exd5 {[%clk 0:03:00]} 5. Nf3 {[%clk 0:02:57]}  Nc6 {[%clk 0:03:01]} 6. g3 {[%clk 0:02:55]}  Nf6 {[%clk 0:03:01]} 7. Bg2 {[%clk 0:02:55]}  Be7 {[%clk 0:03:01]} 8. O-O {[%clk 0:02:55]}  O-O {[%clk 0:03:01]} 9. Bg5 {[%clk 0:02:54]}  cxd4 {[%clk 0:02:59]} 10. Nxd4 {[%clk 0:02:53]}  h6 {[%clk 0:03:00]} 11. Be3 {[%clk 0:02:54]}  Re8 {[%clk 0:03:00]} 12. Rc1 {[%clk 0:02:51]}  Bf8 {[%clk 0:02:57]} 13. Nxc6 {[%clk 0:02:47]}  bxc6 {[%clk 0:02:57]} 14. Na4 {[%clk 0:02:47]}  Rxe3 {[%clk 0:02:36]} 15. fxe3 {[%clk 0:02:44]}  Qe8 {[%clk 0:02:33]} 16. Qd4 {[%clk 0:02:37]}  Bd6 {[%clk 0:02:16]} 17. e4 {[%clk 0:02:21]}  Be5 {[%clk 0:02:15]} 18. Qd3 {[%clk 0:02:20]}  dxe4 {[%clk 0:02:11]} 19. Bxe4 {[%clk 0:02:14]}  Nxe4 {[%clk 0:02:02]} 20. Qxe4 {[%clk 0:02:13]}  Bh3 {[%clk 0:01:57]} 21. Rc5 {[%clk 0:01:35]}  Bd6 {[%clk 0:01:41]} 22. Qxe8+ {[%clk 0:01:33]}  Rxe8 {[%clk 0:01:41]} 23. Rxc6 {[%clk 0:01:18]}  Bxf1 {[%clk 0:01:22]} 24. Kxf1 {[%clk 0:01:18]}  Be5 {[%clk 0:01:20]} 25. b3 {[%clk 0:01:04]}  Rd8 {[%clk 0:01:15]} 26. Rc2 {[%clk 0:01:04]}  Rd1+ {[%clk 0:01:13]} 27. Kg2 {[%clk 0:01:05]}  h5 {[%clk 0:01:10]} 28. Nc5 {[%clk 0:00:57]}  g6 {[%clk 0:01:02]} 29. Nd3 {[%clk 0:00:57]}  Bd4 {[%clk 0:01:01]} 30. Kf3 {[%clk 0:00:54]}  f5 {[%clk 0:00:55]} 31. Nf4 {[%clk 0:00:46]}  Rf1+ {[%clk 0:00:52]} 32. Kg2 {[%clk 0:00:45]}  Rf2+ {[%clk 0:00:52]} 33. Kh1 {[%clk 0:00:35]}  g5 {[%clk 0:00:30]} 34. Nh3 {[%clk 0:00:31]}  Rf1+ {[%clk 0:00:22]} 35. Kg2 {[%clk 0:00:24]}  Ra1 {[%clk 0:00:22]} 36. Nxg5 {[%clk 0:00:20]}  Be3 {[%clk 0:00:21]} 37. Nf3 {[%clk 0:00:20]}  Kf7 {[%clk 0:00:21]} 38. Rc3 {[%clk 0:00:18]}  Bb6 {[%clk 0:00:20]} 39. Rc2 {[%clk 0:00:17]}  Ke6 {[%clk 0:00:20]} 40. Nd2 {[%clk 0:00:16]}  Rg1+ {[%clk 0:00:19]} 41. Kh3 {[%clk 0:00:16]}  Re1 {[%clk 0:00:18]} 42. Nf3 {[%clk 0:00:15]}  Rf1 {[%clk 0:00:17]} 43. Kg2 {[%clk 0:00:14]}  Rf2+ {[%clk 0:00:17]} 44. Kh3 {[%clk 0:00:14]}  Kd5 {[%clk 0:00:17]} 45. Rd2+ {[%clk 0:00:12]}  Ke4 {[%clk 0:00:17]} 46. Rc2 {[%clk 0:00:12]}  Ke3 {[%clk 0:00:17]} 47. Nh4 {[%clk 0:00:12]}  f4 {[%clk 0:00:13]} 48. Rc3+ {[%clk 0:00:09]}  Kxe2 {[%clk 0:00:11]} 49. gxf4 {[%clk 0:00:08]}  Rxf4 {[%clk 0:00:10]} 50. Ng2 {[%clk 0:00:08]}  Re4 {[%clk 0:00:07]} 51. Rc2+ {[%clk 0:00:08]}  Kd3 {[%clk 0:00:06]} 52. Rc1 {[%clk 0:00:08]}  Kd2 {[%clk 0:00:05]} 53. Rc8 {[%clk 0:00:05]}  Rd4 {[%clk 0:00:05]} 54. Rc4 {[%clk 0:00:04]}  Rd3+ {[%clk 0:00:05]} 55. Kh4 {[%clk 0:00:04]}  Bg1 {[%clk 0:00:05]} 56. Nf4 {[%clk 0:00:04]}  Rf3 {[%clk 0:00:02]} 57. Kxh5 {[%clk 0:00:03]}  Bxh2 {[%clk 0:00:02]} 58. Nd5 {[%clk 0:00:03]}  Bg1 {[%clk 0:00:02]} 59. Kg4 {[%clk 0:00:03]}  Rf7 {[%clk 0:00:02]} 60. Nb4 {[%clk 0:00:03]}  Bb6 {[%clk 0:00:01]} 61. Kg5 {[%clk 0:00:03]}  Kd1 {[%clk 0:00:02]} 62. Kg6 {[%clk 0:00:04]}  Rf2 {[%clk 0:00:03]} 63. Nd5 {[%clk 0:00:04]}  Rxa2 {[%clk 0:00:03]} 64. Nxb6 {[%clk 0:00:05]}  axb6 {[%clk 0:00:04]} 65. Rb4 {[%clk 0:00:06]}  Kc2 {[%clk 0:00:04]} 66. Rxb6 {[%clk 0:00:06]}  Rb2 {[%clk 0:00:05]} 67. b4 {[%clk 0:00:07]}  Kb3 {[%clk 0:00:05]} 68. b5 {[%clk 0:00:07]}  Kb4 {[%clk 0:00:06]} 69. Kf6 {[%clk 0:00:08]}  Kc5 {[%clk 0:00:06]} 70. Rb8 {[%clk 0:00:08]}  Rh2 {[%clk 0:00:05]} 71. b6 {[%clk 0:00:08]}  Rh6+ {[%clk 0:00:06]} 72. Kg5 {[%clk 0:00:08]}  Rxb6 {[%clk 0:00:06]} 73. Rxb6 {[%clk 0:00:07]}  Kxb6 {[%clk 0:00:07]} 1/2-1/2


[Site "https://www.chess.com"]

[Event "Titled Tuesday Blitz August 31 2021"]
[White "Garcia Garcia, Alejandro"]
[Black "Shahade, Gregory"]
[WhiteFideId "3516334"]
[BlackFideId "2009064"]
[WhiteElo "2131"]
[BlackElo "2667"]
[Result "1-0"]
[Round "02"]
[TimeControl "180+1"]
[Date "2021.08.31"]
[WhiteClock "0:00:08"]
[BlackClock "0:00:10"]

1. Nf3 {[%clk 0:03:00]}  Nf6 {[%clk 0:02:59]} 2. g3 {[%clk 0:03:01]}  g6 {[%clk 0:02:59]} 3. Bg2 {[%clk 0:03:02]}  Bg7 {[%clk 0:03:00]} 4. O-O {[%clk 0:03:03]}  O-O {[%clk 0:03:00]} 5. c4 {[%clk 0:03:04]}  d5 {[%clk 0:02:56]} 6. cxd5 {[%clk 0:03:02]}  Nxd5 {[%clk 0:02:57]} 7. Nc3 {[%clk 0:03:03]}  Nb6 {[%clk 0:02:53]} 8. d3 {[%clk 0:03:03]}  Nc6 {[%clk 0:02:53]} 9. h4 {[%clk 0:03:03]}  h6 {[%clk 0:02:42]} 10. Bd2 {[%clk 0:02:59]}  Kh7 {[%clk 0:02:40]} 11. Rb1 {[%clk 0:02:57]}  e5 {[%clk 0:02:38]} 12. b4 {[%clk 0:02:56]}  Be6 {[%clk 0:02:36]} 13. Qc2 {[%clk 0:02:42]}  Bg4 {[%clk 0:02:24]} 14. Be3 {[%clk 0:02:30]}  Nd4 {[%clk 0:02:15]} 15. Bxd4 {[%clk 0:02:27]}  exd4 {[%clk 0:02:12]} 16. Ne4 {[%clk 0:02:27]}  Nd5 {[%clk 0:02:05]} 17. Qc4 {[%clk 0:02:12]}  Nc3 {[%clk 0:01:49]} 18. Nxc3 {[%clk 0:02:03]}  Be6 {[%clk 0:01:35]} 19. Nd5 {[%clk 0:01:48]}  Bxd5 {[%clk 0:01:34]} 20. Qxd5 {[%clk 0:01:01]}  Qxd5 {[%clk 0:01:30]} 21. Ng5+ {[%clk 0:01:00]}  hxg5 {[%clk 0:01:21]} 22. Bxd5 {[%clk 0:01:00]}  c6 {[%clk 0:01:22]} 23. Bf3 {[%clk 0:00:55]}  gxh4 {[%clk 0:01:22]} 24. gxh4 {[%clk 0:00:55]}  Bf6 {[%clk 0:01:22]} 25. h5 {[%clk 0:00:51]}  gxh5 {[%clk 0:01:22]} 26. b5 {[%clk 0:00:35]}  cxb5 {[%clk 0:00:45]} 27. Rxb5 {[%clk 0:00:35]}  Rae8 {[%clk 0:00:38]} 28. Kh1 {[%clk 0:00:31]}  b6 {[%clk 0:00:35]} 29. Rxh5+ {[%clk 0:00:30]}  Kg8 {[%clk 0:00:27]} 30. Rg1+ {[%clk 0:00:31]}  Bg7 {[%clk 0:00:26]} 31. Rhg5 {[%clk 0:00:31]}  Re6 {[%clk 0:00:22]} 32. Rxg7+ {[%clk 0:00:31]}  Kh8 {[%clk 0:00:22]} 33. R7g2 {[%clk 0:00:30]}  Rh6+ {[%clk 0:00:22]} 34. Rh2 {[%clk 0:00:30]}  Rxh2+ {[%clk 0:00:23]} 35. Kxh2 {[%clk 0:00:31]}  Rc8 {[%clk 0:00:23]} 36. Rg4 {[%clk 0:00:28]}  Rc2 {[%clk 0:00:23]} 37. a4 {[%clk 0:00:28]}  a5 {[%clk 0:00:19]} 38. Rxd4 {[%clk 0:00:27]}  Rb2 {[%clk 0:00:19]} 39. Rd7 {[%clk 0:00:23]}  Rb4 {[%clk 0:00:17]} 40. Bc6 {[%clk 0:00:20]}  Kg7 {[%clk 0:00:16]} 41. Bb5 {[%clk 0:00:20]}  Rb2 {[%clk 0:00:12]} 42. Re7 {[%clk 0:00:19]}  Kf6 {[%clk 0:00:12]} 43. Re4 {[%clk 0:00:19]}  Kf5 {[%clk 0:00:11]} 44. Kg2 {[%clk 0:00:19]}  f6 {[%clk 0:00:11]} 45. Kf3 {[%clk 0:00:19]}  Rb1 {[%clk 0:00:10]} 46. Ke3 {[%clk 0:00:20]}  Rb2 {[%clk 0:00:10]} 47. Rf4+ {[%clk 0:00:20]}  Kg5 {[%clk 0:00:08]} 48. Rf3 {[%clk 0:00:18]}  f5 {[%clk 0:00:07]} 49. Rg3+ {[%clk 0:00:18]}  Kf6 {[%clk 0:00:07]} 50. Rh3 {[%clk 0:00:18]}  Rb4 {[%clk 0:00:07]} 51. Rh6+ {[%clk 0:00:18]}  Ke5 {[%clk 0:00:07]} 52. Rxb6 {[%clk 0:00:19]}  f4+ {[%clk 0:00:06]} 53. Kf3 {[%clk 0:00:19]}  Rb2 {[%clk 0:00:05]} 54. Ra6 {[%clk 0:00:19]}  Rb4 {[%clk 0:00:03]} 55. Rxa5 {[%clk 0:00:19]}  Kd4 {[%clk 0:00:04]} 56. Ra8 {[%clk 0:00:18]}  Rb2 {[%clk 0:00:04]} 57. Rc8 {[%clk 0:00:18]}  Ke5 {[%clk 0:00:04]} 58. Rc5+ {[%clk 0:00:18]}  Kd6 {[%clk 0:00:03]} 59. Rc4 {[%clk 0:00:18]}  Kd5 {[%clk 0:00:04]} 60. Rxf4 {[%clk 0:00:18]}  Ra2 {[%clk 0:00:04]} 61. Rc4 {[%clk 0:00:17]}  Ke5 {[%clk 0:00:05]} 62. Ke3 {[%clk 0:00:17]}  Ra1 {[%clk 0:00:05]} 63. f4+ {[%clk 0:00:17]}  Kd6 {[%clk 0:00:05]} 64. Kd4 {[%clk 0:00:16]}  Rf1 {[%clk 0:00:04]} 65. e3 {[%clk 0:00:14]}  Ra1 {[%clk 0:00:05]} 66. Rc6+ {[%clk 0:00:14]}  Ke7 {[%clk 0:00:05]} 67. Ra6 {[%clk 0:00:15]}  Ra3 {[%clk 0:00:04]} 68. e4 {[%clk 0:00:15]}  Kd8 {[%clk 0:00:04]} 69. Ra7 {[%clk 0:00:14]}  Kc8 {[%clk 0:00:04]} 70. f5 {[%clk 0:00:13]}  Kb8 {[%clk 0:00:04]} 71. Rd7 {[%clk 0:00:13]}  Rb3 {[%clk 0:00:05]} 72. f6 {[%clk 0:00:13]}  Rb1 {[%clk 0:00:05]} 73. f7 {[%clk 0:00:12]}  Rf1 {[%clk 0:00:06]} 74. Rd8+ {[%clk 0:00:12]}  Ka7 {[%clk 0:00:07]} 75. f8=Q {[%clk 0:00:10]}  Rxf8 {[%clk 0:00:08]} 76. Rxf8 {[%clk 0:00:10]}  Kb6 {[%clk 0:00:09]} 77. Rf6+ {[%clk 0:00:10]}  Ka5 {[%clk 0:00:09]} 78. Ra6+ {[%clk 0:00:09]}  Kb4 {[%clk 0:00:10]} 79. Ra8 {[%clk 0:00:08]} 1-0


[Site "https://www.chess.com"]

[Event "Titled Tuesday Blitz August 31 2021"]
[White "Golubev, Mikhail"]
[Black "Svane, Frederik"]
[WhiteFideId "14100983"]
[BlackFideId "12923044"]
[WhiteElo "2374"]
[BlackElo "2459"]
[Result "1/2-1/2"]
[Round "02"]
[TimeControl "180+1"]
[Date "2021.08.31"]
[WhiteClock "0:00:06"]
[BlackClock "0:00:07"]

1. e4 {[%clk 0:03:00]}  c5 {[%clk 0:02:58]} 2. Nf3 {[%clk 0:03:00]}  Nc6 {[%clk 0:02:55]} 3. Nc3 {[%clk 0:03:00]}  g6 {[%clk 0:02:55]} 4. d4 {[%clk 0:02:59]}  cxd4 {[%clk 0:02:55]} 5. Nxd4 {[%clk 0:03:00]}  Bg7 {[%clk 0:02:56]} 6. Be3 {[%clk 0:03:00]}  Nf6 {[%clk 0:02:55]} 7. Nxc6 {[%clk 0:02:56]}  bxc6 {[%clk 0:02:54]} 8. e5 {[%clk 0:02:56]}  Ng8 {[%clk 0:02:54]} 9. Bd4 {[%clk 0:02:56]}  Qc7 {[%clk 0:02:51]} 10. Qe2 {[%clk 0:02:31]}  c5 {[%clk 0:02:24]} 11. Nb5 {[%clk 0:02:04]}  Qc6 {[%clk 0:02:17]} 12. Bc3 {[%clk 0:01:56]}  Ba6 {[%clk 0:02:01]} 13. O-O-O {[%clk 0:01:35]}  Nh6 {[%clk 0:01:30]} 14. Nd6+ {[%clk 0:01:13]}  exd6 {[%clk 0:01:28]} 15. Qxa6 {[%clk 0:01:13]}  dxe5 {[%clk 0:01:14]} 16. Qxc6 {[%clk 0:00:46]}  dxc6 {[%clk 0:01:15]} 17. Rd6 {[%clk 0:00:43]}  Rc8 {[%clk 0:01:15]} 18. Ba6 {[%clk 0:00:40]}  Ke7 {[%clk 0:01:15]} 19. Bxc8 {[%clk 0:00:15]}  Kxd6 {[%clk 0:01:14]} 20. Rd1+ {[%clk 0:00:16]}  Kc7 {[%clk 0:00:53]} 21. Ba6 {[%clk 0:00:16]}  Kb6 {[%clk 0:00:25]} 22. Bc4 {[%clk 0:00:15]}  Bf6 {[%clk 0:00:04]} 23. Rd7 {[%clk 0:00:09]}  Rd8 {[%clk 0:00:02]} 24. Rxd8 {[%clk 0:00:08]}  Bxd8 {[%clk 0:00:03]} 25. Bxe5 {[%clk 0:00:08]}  Ng4 {[%clk 0:00:01]} 26. Bg3 {[%clk 0:00:08]}  f5 {[%clk 0:00:01]} 27. h3 {[%clk 0:00:08]}  Nf6 {[%clk 0:00:01]} 28. Bh4 {[%clk 0:00:06]}  Kc7 {[%clk 0:00:01]} 29. Bxf6 {[%clk 0:00:06]}  Bxf6 {[%clk 0:00:02]} 30. c3 {[%clk 0:00:04]}  h6 {[%clk 0:00:02]} 31. Kd2 {[%clk 0:00:05]}  g5 {[%clk 0:00:02]} 32. Kd3 {[%clk 0:00:05]}  Kd6 {[%clk 0:00:03]} 33. Bf7 {[%clk 0:00:04]}  Be5 {[%clk 0:00:03]} 34. g3 {[%clk 0:00:03]}  f4 {[%clk 0:00:03]} 35. g4 {[%clk 0:00:03]}  Bg7 {[%clk 0:00:03]} 36. f3 {[%clk 0:00:03]}  Be5 {[%clk 0:00:03]} 37. Bg6 {[%clk 0:00:03]}  Bg7 {[%clk 0:00:04]} 38. Be4 {[%clk 0:00:04]}  Bf8 {[%clk 0:00:04]} 39. Kc4 {[%clk 0:00:04]}  Be7 {[%clk 0:00:04]} 40. Bd3 {[%clk 0:00:04]}  Ke5 {[%clk 0:00:04]} 41. Be4 {[%clk 0:00:04]}  Kd6 {[%clk 0:00:05]} 42. Bd3 {[%clk 0:00:05]}  Bd8 {[%clk 0:00:05]} 43. Be4 {[%clk 0:00:05]}  Bb6 {[%clk 0:00:06]} 44. Bd3 {[%clk 0:00:05]}  Bd8 {[%clk 0:00:06]} 45. Be4 {[%clk 0:00:05]}  Bb6 {[%clk 0:00:07]} 46. Bd3 {[%clk 0:00:06]}  Bd8 {[%clk 0:00:07]} 1/2-1/2


[Site "https://www.chess.com"]

[Event "Titled Tuesday Blitz August 31 2021"]
[White "Grochal, Joey"]
[Black "Maksimovic, Bojan"]
[WhiteFideId "1019945"]
[BlackFideId "14408120"]
[WhiteElo "2265"]
[BlackElo "2439"]
[Result "0-1"]
[Round "02"]
[TimeControl "180+1"]
[Date "2021.08.31"]
[WhiteClock "0:01:40"]
[BlackClock "0:02:01"]

1. d4 {[%clk 0:03:00]}  Nf6 {[%clk 0:03:00]} 2. c4 {[%clk 0:03:01]}  a6 {[%clk 0:03:00]} 3. Nc3 {[%clk 0:02:59]}  c5 {[%clk 0:03:01]} 4. d5 {[%clk 0:02:59]}  b5 {[%clk 0:03:01]} 5. cxb5 {[%clk 0:02:59]}  axb5 {[%clk 0:03:02]} 6. Nxb5 {[%clk 0:02:57]}  d6 {[%clk 0:02:50]} 7. Nf3 {[%clk 0:02:53]}  g6 {[%clk 0:02:46]} 8. a4 {[%clk 0:02:44]}  Bg7 {[%clk 0:02:46]} 9. e3 {[%clk 0:02:42]}  O-O {[%clk 0:02:42]} 10. Bc4 {[%clk 0:02:42]}  Nbd7 {[%clk 0:02:40]} 11. O-O {[%clk 0:02:41]}  Nb6 {[%clk 0:02:39]} 12. Qb3 {[%clk 0:02:31]}  Nxc4 {[%clk 0:02:35]} 13. Qxc4 {[%clk 0:02:31]}  Ba6 {[%clk 0:02:36]} 14. Bd2 {[%clk 0:02:29]}  Qb6 {[%clk 0:02:36]} 15. Bc3 {[%clk 0:02:25]}  Rfb8 {[%clk 0:02:36]} 16. e4 {[%clk 0:02:16]}  Bxb5 {[%clk 0:02:10]} 17. axb5 {[%clk 0:02:17]}  Rxa1 {[%clk 0:02:09]} 18. Rxa1 {[%clk 0:02:18]}  Qxb5 {[%clk 0:02:10]} 19. Nd2 {[%clk 0:02:18]}  Qxc4 {[%clk 0:02:08]} 20. Nxc4 {[%clk 0:02:19]}  Nxe4 {[%clk 0:02:09]} 21. Bxg7 {[%clk 0:02:08]}  Kxg7 {[%clk 0:02:10]} 22. f3 {[%clk 0:02:08]}  Nf6 {[%clk 0:02:06]} 23. Ne3 {[%clk 0:01:45]}  Rb3 {[%clk 0:02:02]} 24. Nd1 {[%clk 0:01:40]}  Nxd5 {[%clk 0:02:01]} 0-1


[Site "https://www.chess.com"]